bitfinex-derivatives/quotes_ETHF0:USTF0_20210110
["timestamp","ask_amount","ask_price","bid_price","bid_amount"]
[1610243074575,16.0,1328.9,1328.7,5.722216]
[1610243075173,16.0,1328.9,1328.8,1.71080755]
[1610243075473,16.0,1328.9,1328.7,1.71093277]
[1610243075673,4.00959,1328.8,1328.7,1.71093277]
[1610243076975,34.00959,1328.8,1328.7,1.71093277]
[1610243077177,34.00959,1328.8,1328.6,2.5932]
[1610243077178,34.00959,1328.8,1328.6,1.71361897]
[1610243077676,34.00959,1328.8,1328.7,1.28537483]
[1610243078075,4.00959,1328.8,1328.6,1.28511341]
[1610243078475,4.00959,1328.8,1328.7,1.28475827]
[1610243079075,4.00959,1328.8,1328.6,1.71126968]
[1610243082881,4.00959,1328.8,1328.5,1.71257149]
[1610243083582,34.00959,1328.8,1328.5,1.71257149]
[1610243083781,4.00959,1328.6,1328.5,1.71257149]
[1610243083982,4.00959,1328.6,1328.4,1.7133953]
[1610243084181,34.00959,1328.6,1328.4,1.7133953]
[1610243084481,34.00959,1328.6,1328.3,1.71364374]
[1610243084985,36.28189,1328.6,1328.3,1.71364374]
[1610243085485,36.28189,1328.6,1328.5,1.28644628]
[1610243085685,6.28189,1328.6,1328.5,1.28644628]
[1610243086486,6.28189,1328.6,1328.4,1.7130174]
[1610243087285,6.28189,1328.6,1328.5,1.71201383]
[1610243087489,2.2723,1328.6,1328.4,2.13779346]
[1610243087688,17.9215,1328.9,1328.5,4.00959]
[1610243087889,17.9215,1328.9,1328.5,6.14630642]
[1610243088289,17.9215,1328.9,1328.8,1.7085501]
[1610243088891,17.9215,1328.9,1328.6,2.13568762]
[1610243089192,17.9215,1328.9,1328.8,1.70832606]
[1610243089591,17.9215,1328.9,1328.6,2.13568762]
[1610243089791,4.00959,1328.7,1328.6,2.13568762]
[1610243089994,4.00959,1328.7,1328.5,6.14566817]
[1610243090394,4.00959,1328.7,1328.5,4.00959]
[1610243090593,4.00959,1328.7,1328.4,2.13720473]
[1610243090794,4.00959,1328.7,1328.5,2.1367496]
[1610243091094,4.00959,1328.7,1328.4,2.13814412]
[1610243091694,4.00959,1328.5,1328.4,2.13814412]
[1610243091893,17.9215,1328.9,1328.4,2.13814412]
[1610243092497,17.9215,1328.9,1328.7,1.71033447]
[1610243092896,17.9215,1328.9,1328.8,1.71091944]
[1610243093299,17.9215,1328.9,1328.7,1.71142903]
[1610243093696,4.00959,1328.8,1328.7,5.72101903]
[1610243093896,17.9215,1328.9,1328.7,5.72101903]
[1610243094098,17.9215,1328.9,1328.8,1.71213896]
[1610243095001,17.9215,1328.9,1328.8,1.71343983]
[1610243095801,21.93109,1328.9,1328.8,1.71343983]
[1610243096703,21.93109,1328.9,1328.7,1.71464994]
[1610243096903,21.93109,1328.9,1328.6,4.00959]
[1610243097106,21.93109,1328.9,1328.7,1.71465488]
[1610243097404,21.93109,1328.9,1328.8,1.71485213]
[1610243099105,21.93109,1328.9,1328.6,6.15245719]
[1610243099306,21.93109,1328.9,1328.7,52.5456]
[1610243099706,21.93109,1328.9,1328.8,4.00959]
[1610243100208,17.9215,1328.9,1328.8,4.00959]
[1610243101107,17.9215,1328.9,1328.8,6.15168534]
[1610243101407,17.9215,1328.9,1328.8,4.00959]
[1610243101809,17.9215,1328.9,1328.8,6.1534832]
[1610243102110,17.9215,1328.9,1328.8,4.00959]
[1610243104109,17.9215,1328.9,1328.8,6.16137644]
[1610243104509,17.9215,1328.9,1328.8,4.00959]
[1610243105412,17.9215,1328.9,1328.7,54.69766626]
[1610243105811,4.00959,1328.8,1328.7,52.5456]
[1610243106712,17.9215,1328.9,1328.7,52.5456]
[1610243107412,17.9215,1328.9,1328.7,54.69619858]
[1610243107913,21.93109,1328.9,1328.7,54.69619858]
[1610243108312,21.93109,1328.9,1328.7,52.5456]
[1610243108725,21.93109,1328.9,1328.7,1.72462653]
[1610243110116,21.93109,1328.9,1328.8,1.72736235]
[1610243110615,21.93109,1328.9,1328.6,60.41870976]
[1610243111314,21.93109,1328.9,1328.7,2.1594205]
[1610243111716,21.93109,1328.9,1328.6,60.4181669]
[1610243112214,17.9215,1328.9,1328.6,60.4181669]
[1610243112415,17.9215,1328.9,1328.7,2.15863347]
[1610243112816,17.9215,1328.9,1328.8,2.15899671]
[1610243113516,17.9215,1328.9,1328.7,2.16044395]
[1610243113816,4.00959,1328.8,1328.7,2.16044395]
[1610243115318,4.00959,1328.8,1328.6,54.2488]
[1610243115319,4.00959,1328.8,1328.6,56.41034632]
[1610243116419,4.00959,1328.8,1328.6,54.2488]
[1610243117621,4.00959,1328.8,1328.6,56.41732632]
[1610243117821,4.00959,1328.8,1328.7,4.00959]
[1610243118221,17.9215,1328.9,1328.7,4.00959]
[1610243118725,17.9215,1328.9,1328.7,6.17789008]
[1610243119924,21.93109,1328.9,1328.7,6.17789008]
[1610243120123,21.93109,1328.9,1328.7,4.00959]
[1610243120424,21.93109,1328.9,1328.6,2.17044317]
[1610243120824,21.93109,1328.9,1328.8,1.73758898]
[1610243121225,21.93109,1328.9,1328.1,61.6542]
[1610243121226,21.93109,1328.9,1328.7,1.7382878]
[1610243121825,51.93109,1328.9,1328.7,1.7382878]
[1610243122025,51.93109,1328.9,1328.6,1.73956638]
[1610243122224,51.93109,1328.9,1328.8,1.30537751]
[1610243122625,51.93109,1328.9,1328.5,1.74050334]
[1610243122626,51.93109,1328.9,1328.7,1.30570596]
[1610243123028,30.0,1328.8,1328.7,1.30570596]
[1610243124232,51.93109,1328.9,1328.7,1.30570596]
[1610243125034,51.93109,1328.9,1328.8,1.30746427]
[1610243125933,51.93109,1328.9,1328.7,1.30855744]
[1610243128839,51.93109,1328.9,1328.1,5.59385209]
[1610243128840,51.93109,1328.9,1328.6,1.31421213]
[1610243129239,51.93109,1328.9,1328.8,1.09585773]
[1610243129539,21.93109,1328.9,1328.6,1.31421213]
[1610243129941,21.93109,1328.9,1328.1,62.20475886]
[1610243129942,47.9215,1328.9,1328.7,1.31382127]
[1610243131041,17.9215,1328.9,1328.7,1.31382127]
[1610243131242,47.9215,1328.9,1328.7,1.31382127]
[1610243131846,4.00959,1328.8,1328.6,1.31527582]
[1610243132043,30.0,1328.7,1328.6,1.31527582]
[1610243132645,30.0,1328.7,1328.5,1.31637798]
[1610243133245,30.0,1328.7,1328.4,1.31745836]
[1610243133546,30.0,1328.7,1328.5,1.31740294]
[1610243133947,34.00959,1328.6,1328.5,1.31740294]
[1610243134145,35.89639,1328.6,1328.5,1.31740294]
[1610243134947,5.89639,1328.6,1328.5,1.31740294]
[1610243135150,5.89639,1328.6,1328.4,1.31906495]
[1610243135349,5.89639,1328.6,1328.5,1.31977994]
[1610243135948,35.89639,1328.6,1328.5,1.31977994]
[1610243136948,5.89639,1328.6,1328.5,1.31977994]
[1610243137550,5.89639,1328.6,1328.3,1.75897137]
[1610243137750,35.89639,1328.6,1328.3,1.75897137]
[1610243137951,31.8868,1328.6,1328.4,1.7584859]
[1610243138251,31.8868,1328.6,1328.3,1.75853521]
[1610243138550,31.8868,1328.6,1328.4,1.7579363]
[1610243138750,1.8868,1328.6,1328.4,1.7579363]
[1610243139151,30.0,1328.8,1328.4,1.7579363]
[1610243139751,17.9215,1328.9,1328.5,1.75506451]
[1610243139951,4.00959,1328.6,1328.4,4.00959]
[1610243140351,4.00959,1328.6,1328.4,6.20234252]
[1610243140552,17.9215,1328.9,1328.4,6.20234252]
[1610243140751,17.9215,1328.9,1328.7,1.75379503]
[1610243141152,17.9215,1328.9,1328.6,2.19103575]
[1610243141352,19.4219,1328.9,1328.6,2.19103575]
[1610243141553,19.4219,1328.9,1328.7,2.1899316]
[1610243141754,19.4219,1328.9,1328.8,1.75272042]
[1610243141952,23.43149,1328.9,1328.8,1.75272042]
[1610243142355,21.93109,1328.9,1328.8,1.75272042]
[1610243142552,21.93109,1328.9,1328.4,4.00959]
[1610243142553,21.93109,1328.9,1328.7,1.75393185]
[1610243142953,51.93109,1328.9,1328.7,1.75393185]
[1610243143153,51.93109,1328.9,1328.6,1.75366806]
[1610243143553,53.44969,1328.9,1328.7,1.75353742]
[1610243144453,51.93109,1328.9,1328.7,1.75353742]
[1610243145055,51.93109,1328.9,1328.4,2.19241481]
[1610243145254,51.93109,1328.9,1328.7,1.75403351]
[1610243145455,53.45459,1328.9,1328.7,1.75403351]
[1610243145754,53.45459,1328.9,1328.6,1.75445377]
[1610243145955,4.00959,1328.7,1328.6,1.75445377]
[1610243146353,34.00959,1328.7,1328.6,1.75445377]
[1610243146554,34.00959,1328.7,1328.5,62.41100519]
[1610243146956,34.00959,1328.7,1328.6,1.75467952]
[1610243147156,35.50239,1328.7,1328.5,62.4102466]
[1610243147557,34.00959,1328.7,1328.5,62.4102466]
[1610243147957,34.00959,1328.7,1328.5,60.6561]
[1610243148557,35.52119,1328.7,1328.6,1.31641763]
[1610243149157,34.00959,1328.7,1328.6,1.31641763]
[1610243150959,34.00959,1328.7,1328.5,60.6561]
[1610243151259,35.50469,1328.7,1328.5,60.6561]
[1610243152262,5.50469,1328.7,1328.5,60.6561]
[1610243152762,4.00959,1328.7,1328.5,62.40814428]
[1610243152962,34.00959,1328.7,1328.5,62.40814428]
[1610243153862,35.52799,1328.7,1328.5,62.40814428]
[1610243154064,5.52799,1328.7,1328.6,1.7503091]
[1610243154364,5.52799,1328.7,1328.5,60.6561]
[1610243154767,1.5184,1328.7,1328.5,62.840858]
[1610243154965,1.5184,1328.7,1328.5,60.6561]
[1610243155167,17.9215,1328.9,1328.5,60.6561]
[1610243155366,17.9215,1328.9,1328.8,1.74710372]
[1610243155765,47.9215,1328.9,1328.8,1.74710372]
[1610243155965,51.93109,1328.9,1328.8,1.74710372]
[1610243156165,51.93109,1328.9,1328.7,1.74743952]
[1610243156768,21.93109,1328.9,1328.7,1.74743952]
[1610243157169,23.41589,1328.9,1328.7,1.74743952]
[1610243157968,21.93109,1328.9,1328.7,1.74743952]
[1610243158370,21.93109,1328.9,1328.8,1.75052407]
[1610243160773,21.93109,1328.9,1328.7,1.7536959]
[1610243163475,30.0,1328.8,1328.7,1.7536959]
[1610243165278,51.93109,1328.9,1328.7,1.7536959]
[1610243166182,51.93109,1328.9,1328.8,1.75095225]
[1610243166580,51.93109,1328.9,1328.7,1.7508815]
[1610243170084,51.93109,1328.9,1328.8,1.75556226]
[1610243171386,51.93109,1328.9,1328.8,1.7615]
[1610243171586,51.93109,1328.9,1328.8,3.51691678]
[1610243172185,51.93109,1328.9,1328.8,1.7615]
[1610243173785,51.93109,1328.9,1328.8,3.51735318]
[1610243174185,51.93109,1328.9,1328.8,1.75585318]
[1610243174587,51.93109,1328.9,1328.7,1.75900738]
[1610243178195,51.93109,1328.9,1328.8,1.75938097]
[1610243180293,51.93109,1328.9,1328.7,1.76370225]
[1610243180496,51.93109,1328.9,1328.6,1.76436096]
[1610243181296,51.93109,1328.9,1328.8,1.32436363]
[1610243181599,51.93109,1328.9,1328.7,1.32498505]
[1610243184400,51.93109,1328.9,1328.5,1.76581818]
[1610243184401,51.93109,1328.9,1328.8,1.32587359]
[1610243187908,51.93109,1328.9,1328.7,1.32852769]
[1610243188409,51.93109,1328.9,1328.6,1.32842324]
[1610243189009,51.93109,1328.9,1328.8,1.10755575]
[1610243189912,51.93109,1328.9,1328.7,1.10856085]
[1610243190211,51.93109,1328.9,1328.8,0.8872109]
[1610243191311,51.93109,1328.9,1328.7,0.88725433]
[1610243191711,51.93109,1328.9,1328.8,0.66556038]
[1610243192110,51.93109,1328.9,1328.7,0.66578775]
[1610243192411,51.93109,1328.9,1328.6,0.66618271]
[1610243193012,51.93109,1328.9,1328.8,0.22215482]
[1610243193411,51.93109,1328.9,1328.6,0.66618271]
[1610243193714,51.93109,1328.9,1328.5,0.66647971]
[1610243194013,4.00959,1328.6,1328.5,0.66647971]
[1610243194214,34.00959,1328.6,1328.5,0.66647971]
[1610243194414,34.00959,1328.6,1328.4,0.66701672]
[1610243194614,36.54989,1328.6,1328.1,1.11169453]
[1610243194816,36.54989,1328.6,1327.9,1.1130029]
[1610243195216,36.54989,1328.6,1327.8,1.11371744]
[1610243196016,4.00959,1327.9,1327.8,1.11371744]
[1610243196218,5.89089,1327.9,1327.8,1.11371744]
[1610243196417,35.89089,1327.9,1327.8,1.11371744]
[1610243196819,35.89089,1327.9,1327.7,1.11566377]
[1610243197719,35.89089,1327.9,1327.4,46.95339632]
[1610243197918,35.89089,1327.9,1327.4,45.6133]
[1610243198119,4.00959,1327.5,1327.4,45.6133]
[1610243198320,34.00959,1327.5,1327.4,45.6133]
[1610243199120,36.08899,1327.5,1327.4,45.6133]
[1610243199721,36.08899,1327.5,1326.9,1.34322813]
[1610243200122,4.00959,1327.0,1326.9,1.34322813]
[1610243200321,36.19799,1327.0,1326.7,1.34418247]
[1610243200923,36.19799,1327.0,1326.6,1.34452221]
[1610243201522,36.19799,1327.0,1326.4,1.34572919]
[1610243201925,36.19799,1327.0,1326.5,1.34591371]
[1610243202123,4.00959,1326.6,1326.5,1.34591371]
[1610243202324,36.02689,1326.6,1326.5,1.34591371]
[1610243202525,36.02689,1326.6,1326.4,1.79295938]
[1610243202926,36.02689,1326.6,1326.3,2.23981354]
[1610243203327,6.02689,1326.6,1326.4,2.23954935]
[1610243203927,6.02689,1326.6,1326.5,2.23869043]
[1610243204128,4.00959,1326.6,1326.5,2.23869043]
[1610243204328,4.00959,1326.6,1326.3,2.68642851]
[1610243204629,4.00959,1326.6,1326.4,2.68488318]
[1610243204830,30.0,1326.5,1326.4,2.68488318]
[1610243205430,30.0,1326.5,1326.2,2.68642888]
[1610243205629,30.0,1326.5,1326.4,2.23937734]
[1610243206129,30.0,1326.5,1326.3,2.24045944]
[1610243206530,30.0,1326.5,1326.2,2.24140683]
[1610243207531,30.0,1326.5,1326.4,1.79225177]
[1610243208531,30.0,1326.5,1326.3,1.79100406]
[1610243208732,34.00959,1326.6,1326.3,1.79100406]
[1610243208934,34.00959,1326.6,1326.4,1.7902821]
[1610243209336,34.00959,1326.6,1326.4,2.23513306]
[1610243209934,34.00959,1326.6,1326.5,2.23318351]
[1610243210334,34.00959,1326.6,1326.4,2.23376417]
[1610243211936,34.00959,1326.6,1326.3,2.23800921]
[1610243212137,4.00959,1326.4,1326.3,2.23800921]
[1610243212337,34.00959,1326.4,1326.3,2.23800921]
[1610243213237,34.00959,1326.4,1326.1,2.68687652]
[1610243213537,34.00959,1326.4,1326.2,2.68698688]
[1610243213737,4.00959,1326.4,1326.2,2.68698688]
[1610243213939,30.0,1326.9,1326.2,2.68698688]
[1610243214139,4.00959,1326.4,1326.2,2.68698688]
[1610243214338,4.00959,1326.4,1326.3,2.68623488]
[1610243214539,4.00959,1326.4,1326.1,5.79299]
[1610243216240,34.00959,1326.4,1326.1,5.79299]
[1610243216543,34.00959,1326.4,1326.3,2.68666581]
[1610243217640,34.00959,1326.4,1326.1,1.7834]
[1610243217641,34.00959,1326.4,1326.2,2.6868292]
[1610243217941,34.00959,1326.4,1326.1,4.47054463]
[1610243218141,4.00959,1326.2,1326.1,4.47054463]
[1610243218344,34.00959,1326.2,1326.1,4.47054463]
[1610243218644,34.00959,1326.2,1326.1,1.7834]
[1610243218843,34.00959,1326.2,1326.0,2.68807235]
[1610243219044,34.00959,1326.2,1325.9,2.6893177]
[1610243219343,4.00959,1326.2,1325.9,2.6893177]
[1610243220044,34.00959,1326.2,1325.9,2.6893177]
[1610243220244,4.00959,1326.0,1325.9,2.6893177]
[1610243220645,34.00959,1326.0,1325.8,2.69233881]
[1610243221346,34.00959,1326.0,1325.9,2.24599977]
[1610243222046,34.00959,1326.0,1325.7,2.6959537]
[1610243222246,4.00959,1325.8,1325.7,2.6959537]
[1610243222445,34.00959,1325.8,1325.7,2.6959537]
[1610243222648,34.00959,1325.8,1325.6,2.69821925]
[1610243223548,4.00959,1325.8,1325.6,2.69821925]
[1610243223748,4.00959,1325.8,1325.7,2.69730964]
[1610243224250,34.00959,1325.8,1325.7,2.69730964]
[1610243224449,34.00959,1325.8,1325.5,2.1338]
[1610243224649,34.00959,1325.8,1325.4,6.55143813]
[1610243224850,34.00959,1325.8,1325.6,2.69852328]
[1610243225250,4.00959,1325.8,1325.6,2.69852328]
[1610243225650,4.00959,1325.8,1325.5,2.5929]
[1610243226050,1.7582,1326.5,1325.5,2.5929]
[1610243226250,1.7566,1326.8,1325.7,4.00959]
[1610243226454,30.0,1327.0,1325.7,4.00959]
[1610243226651,30.0,1327.7,1326.6,1.79552754]
[1610243226851,55.9403,1327.1,1326.6,3.81162754]
[1610243227053,55.9403,1327.1,1326.9,1.79311636]
[1610243227456,55.9403,1327.1,1327.0,1.79207381]
[1610243227654,55.9403,1327.1,1326.9,1.8629]
[1610243227655,55.9403,1327.1,1326.9,4.102652]
[1610243228257,55.9403,1327.1,1327.0,4.00959]
[1610243228455,55.9403,1327.1,1327.0,6.2499073]
[1610243230358,55.9403,1327.1,1327.0,4.00959]
[1610243230759,4.00959,1327.7,1327.0,4.00959]
[1610243231159,4.00959,1327.7,1327.6,1.3440714]
[1610243231965,30.0,1328.7,1327.6,1.3440714]
[1610243232164,4.00959,1327.9,1327.7,4.00959]
[1610243232566,1.6525,1328.4,1327.8,1.34274227]
[1610243233265,1.6525,1328.4,1328.3,0.89453256]
[1610243234168,5.66209,1328.4,1328.2,0.89513626]
[1610243234368,30.0,1328.3,1328.2,0.89513626]
[1610243236169,5.66209,1328.4,1328.1,1.1181657]
[1610243236571,6.0844,1331.6,1328.3,1.11938124]
[1610243236771,6.0844,1331.6,1328.3,2.77078124]
[1610243236973,6.0844,1331.6,1328.3,2.99398847]
[1610243237174,30.0,1331.5,1328.8,1.11816749]
[1610243237972,30.0,1331.5,1328.8,1.33993657]
[1610243238172,4.00959,1329.5,1328.8,5.34952657]
[1610243238372,34.00959,1329.5,1328.8,5.34952657]
[1610243238973,34.00959,1329.5,1328.8,4.00959]
[1610243239173,34.00959,1329.5,1328.8,5.79876864]
[1610243239374,30.0,1329.4,1328.8,5.79876864]
[1610243239573,30.0,1329.4,1328.8,4.00959]
[1610243239974,30.0,1329.4,1328.8,5.79969317]
[1610243240174,4.00959,1329.2,1328.8,5.79969317]
[1610243240374,30.0,1329.1,1328.8,5.79969317]
[1610243240573,32.5,1329.0,1328.8,5.79969317]
[1610243240875,32.5,1329.0,1328.8,4.00959]
[1610243241075,46.0,1328.9,1328.8,4.00959]
[1610243241675,46.0,1328.9,1328.8,5.35712606]
[1610243241876,46.0,1328.9,1328.8,1.34753606]
[1610243242076,46.0,1328.9,1328.6,1.8007]
[1610243242077,46.0,1328.9,1328.7,1.3478538]
[1610243242277,4.00959,1328.8,1328.6,1.34976023]
[1610243242475,30.0,1328.7,1328.6,1.34976023]
[1610243242675,30.0,1328.7,1328.5,61.35995393]
[1610243243076,30.0,1328.7,1328.5,60.0097]
[1610243243077,31.6955,1328.7,1328.5,60.0097]
[1610243243476,31.6955,1328.7,1328.6,1.12624047]
[1610243243679,31.6955,1328.7,1328.6,0.90089456]
[1610243244279,31.6955,1328.7,1328.6,0.67615099]
[1610243244477,31.6955,1328.7,1328.5,60.91123466]
[1610243244678,1.6955,1328.7,1328.5,60.91123466]
[1610243244880,1.6955,1328.7,1328.6,0.89889548]
[1610243245482,1.6955,1328.7,1328.6,1.12062565]
[1610243245883,1.6955,1328.7,1328.5,60.0097]
[1610243246282,1.6955,1328.7,1328.6,1.12023157]
[1610243247386,30.0,1328.8,1328.6,1.12023157]
[1610243247584,30.0,1328.8,1328.5,60.0097]
[1610243247784,30.0,1328.8,1328.5,61.35144247]
[1610243248183,30.0,1328.8,1328.7,1.11748117]
[1610243248484,30.0,1328.8,1328.5,61.35144247]
[1610243248885,30.0,1328.8,1328.7,1.11484467]
[1610243249086,30.0,1328.8,1328.5,1.34174247]
[1610243249487,30.0,1328.8,1328.7,1.11288029]
[1610243250486,34.00959,1328.8,1328.7,1.11288029]
[1610243250886,34.00959,1328.8,1328.6,1.11309458]
[1610243251188,34.00959,1328.8,1328.4,1.33552833]
[1610243251189,34.00959,1328.8,1328.7,1.11303553]
[1610243251588,34.00959,1328.8,1328.6,1.11352448]
[1610243251889,34.00959,1328.8,1328.7,0.89058668]
[1610243252191,34.00959,1328.8,1328.7,1.11219723]
[1610243252590,34.00959,1328.8,1328.6,1.11216319]
[1610243252891,34.00959,1328.8,1328.7,1.11147118]
[1610243254092,34.00959,1328.8,1328.6,1.10914438]
[1610243255097,34.00959,1328.8,1328.7,1.10877247]
[1610243255895,16.0,1328.9,1328.7,1.10877247]
[1610243256096,16.0,1328.9,1328.5,1.77474098]
[1610243256297,16.0,1328.9,1328.8,4.00959]
[1610243257299,16.0,1328.9,1328.8,5.78104438]
[1610243258299,16.0,1328.9,1328.8,4.00959]
[1610243260698,16.0,1328.9,1328.8,6.21222836]
[1610243261497,16.0,1328.9,1328.8,4.00959]
[1610243262701,16.0,1328.9,1328.8,6.21247923]
[1610243263103,16.0,1328.9,1328.8,4.00959]
[1610243263298,16.0,1328.9,1328.7,4.21228571]
[1610243263500,16.0,1328.9,1328.8,1.76538436]
[1610243263899,16.0,1328.9,1328.6,1.76760808]
[1610243264100,16.0,1328.9,1328.8,1.32619185]
[1610243264298,20.00959,1328.9,1328.8,1.32619185]
[1610243264500,20.00959,1328.9,1328.7,1.32710911]
[1610243264699,20.00959,1328.9,1328.6,1.3274948]
[1610243265199,50.00959,1328.9,1328.6,1.3274948]
[1610243265399,50.00959,1328.9,1328.8,0.88699502]
[1610243265703,50.00959,1328.9,1328.8,0.66607571]
[1610243266403,50.00959,1328.9,1328.8,0.4442007]
[1610243267403,50.00959,1328.9,1328.6,0.44406451]
[1610243268405,4.00959,1328.7,1328.6,0.66479674]
[1610243268603,5.73959,1328.7,1328.6,0.66479674]
[1610243269003,35.73959,1328.7,1328.6,0.66479674]
[1610243269204,35.73959,1328.7,1328.5,0.88639565]
[1610243269705,35.73959,1328.7,1328.6,0.88617749]
[1610243270105,35.73959,1328.7,1328.5,0.88615375]
[1610243270706,35.73959,1328.7,1328.6,0.66477441]
[1610243272207,35.73959,1328.7,1328.5,0.88615375]
[1610243272407,5.73959,1328.7,1328.5,0.88615375]
[1610243272808,5.73959,1328.7,1328.6,0.88586571]
[1610243273108,5.73959,1328.7,1328.5,1.10733214]
[1610243274509,5.73959,1328.7,1328.6,1.10597062]
[1610243275413,5.73959,1328.7,1328.4,1.32457176]
[1610243276112,5.73959,1328.7,1328.2,1.76609568]
[1610243276113,5.73959,1328.7,1328.5,1.32268216]
[1610243276512,4.00959,1328.7,1328.5,5.33227216]
[1610243276712,16.0,1328.9,1328.5,5.33227216]
[1610243276912,16.0,1328.9,1328.6,1.31911398]
[1610243278016,16.0,1328.9,1328.8,1.09478594]
[1610243278213,46.0,1328.9,1328.8,1.09478594]
[1610243278414,50.00959,1328.9,1328.8,1.09478594]
[1610243279016,50.00959,1328.9,1328.8,0.65568973]
[1610243279215,50.00959,1328.9,1328.7,0.65598732]
[1610243279414,52.30869,1328.9,1328.7,0.65598732]
[1610243279615,52.30869,1328.9,1328.8,0.65632098]
[1610243279815,22.30869,1328.9,1328.8,0.65632098]
[1610243280216,52.30869,1328.9,1328.8,0.65632098]
[1610243281217,52.30869,1328.9,1328.7,0.65735763]
[1610243281518,52.30869,1328.9,1328.8,0.43841404]
[1610243281818,52.30869,1328.9,1328.7,0.43890141]
[1610243282616,52.30869,1328.9,1328.5,0.6590657]
[1610243282617,52.30869,1328.9,1328.6,0.43961]
[1610243283223,52.30869,1328.9,1328.7,0.44011009]
[1610243286124,52.30869,1328.9,1328.6,0.44129217]
[1610243286322,52.30869,1328.9,1328.5,0.44173252]
[1610243286523,34.00959,1328.6,1328.5,0.44173252]
[1610243286727,35.91819,1328.6,1328.4,0.44208974]
[1610243286923,35.91819,1328.6,1328.3,0.44246371]
[1610243287323,35.91819,1328.6,1328.4,0.44251244]
[1610243287924,35.91819,1328.6,1328.3,0.44280742]
[1610243288523,4.00959,1328.4,1328.3,0.44280742]
[1610243288727,34.00959,1328.4,1328.3,0.44280742]
[1610243289325,34.00959,1328.4,1328.2,0.66442423]
[1610243290125,29.33609941,1328.3,1328.2,0.88520079]
[1610243290328,29.33609941,1328.3,1328.2,1.1055525]
[1610243291030,29.33609941,1328.3,1327.5,4.00959]
[1610243291031,29.33609941,1328.3,1328.1,1.32569766]
[1610243291431,29.33609941,1328.3,1328.0,1.32597069]
[1610243291731,4.00959,1328.4,1328.0,1.32597069]
[1610243292132,4.00959,1328.4,1328.2,1.32598075]
[1610243292933,33.34568941,1328.4,1328.2,1.32598075]
[1610243293531,33.34568941,1328.4,1328.1,1.32705575]
[1610243293833,33.34568941,1328.4,1328.3,1.10683681]
[1610243294936,33.34568941,1328.4,1328.2,1.10734959]
[1610243295133,33.34568941,1328.4,1328.3,0.88644224]
[1610243295333,33.34568941,1328.4,1328.1,1.1080528]
[1610243295532,33.34568941,1328.4,1328.2,0.88644669]
[1610243296133,33.34568941,1328.4,1328.2,0.44401974]
[1610243296532,33.34568941,1328.4,1328.1,0.44423282]
[1610243297133,33.34568941,1328.4,1327.8,0.88846565]
[1610243297134,33.34568941,1328.4,1328.0,0.44432057]
[1610243297532,33.34568941,1328.4,1328.1,0.44422639]
[1610243298134,33.34568941,1328.4,1328.3,0.44399905]
[1610243298533,33.34568941,1328.4,1328.2,0.88697008]
[1610243298734,33.34568941,1328.4,1328.1,1.3287509]
[1610243299933,33.34568941,1328.4,1328.3,1.10765098]
[1610243301133,33.34568941,1328.4,1328.3,0.88664688]
[1610243301635,33.34568941,1328.4,1328.2,1.1083086]
[1610243302035,33.34568941,1328.4,1328.3,0.88703412]
[1610243302235,33.34568941,1328.4,1328.3,0.66573286]
[1610243303335,33.34568941,1328.4,1328.3,0.44398364]
[1610243304438,33.34568941,1328.4,1328.2,0.4441737]
[1610243305440,33.34568941,1328.4,1328.1,0.44423665]
[1610243306542,4.00959,1328.2,1328.1,0.44423665]
[1610243306743,35.22748941,1328.2,1328.1,0.44423665]
[1610243307943,35.22748941,1328.2,1328.0,0.44486585]
[1610243308144,35.22748941,1328.2,1327.9,0.44516411]
[1610243308544,35.22748941,1328.2,1327.8,0.44544717]
[1610243308545,4.00959,1328.0,1327.8,0.44544717]
[1610243308744,29.33609941,1327.9,1327.8,0.44544717]
[1610243308945,31.87689941,1327.9,1327.6,0.44567108]
[1610243309347,31.87689941,1327.9,1327.5,0.44553464]
[1610243310645,4.00959,1327.6,1327.3,0.44406148]
[1610243310846,29.33609941,1327.5,1327.3,0.44406148]
[1610243311047,29.33609941,1327.5,1327.1,0.44411808]
[1610243311745,29.33609941,1327.5,1327.0,0.44458787]
[1610243312545,4.00959,1327.1,1326.9,0.44489882]
[1610243312744,29.33609941,1327.0,1326.9,0.44489882]
[1610243313746,29.33609941,1327.0,1326.8,0.4454148]
[1610243314148,29.33609941,1327.0,1326.9,0.44502073]
[1610243314550,29.33609941,1327.0,1326.8,0.66753109]
[1610243315148,29.33609941,1327.0,1326.9,0.44383343]
[1610243316149,29.33609941,1327.0,1326.9,0.66420151]
[1610243317454,29.33609941,1327.0,1326.9,0.88744195]
[1610243317754,29.33609941,1327.0,1326.8,0.88651358]
[1610243318353,29.33609941,1327.0,1326.9,0.66516439]
[1610243318753,29.33609941,1327.0,1326.8,0.88651358]
[1610243318754,29.33609941,1327.0,1326.8,0.66544835]
[1610243319153,29.33609941,1327.0,1326.8,0.44392418]
[1610243320556,4.00959,1326.9,1326.8,0.44392418]
[1610243320756,33.34568941,1326.9,1326.6,0.44369964]
[1610243321058,33.34568941,1326.9,1326.5,0.44361841]
[1610243322661,4.00959,1326.6,1326.5,0.44361841]
[1610243322863,34.98378941,1326.6,1326.5,0.44361841]
[1610243323460,34.98378941,1326.6,1326.4,0.66542761]
[1610243324160,34.98378941,1326.6,1326.5,0.44450039]
[1610243324560,34.98378941,1326.6,1326.4,0.66542761]
[1610243324761,34.98378941,1326.6,1326.5,0.44412194]
[1610243328461,34.98378941,1326.6,1326.4,0.44428972]
[1610243329161,34.98378941,1326.6,1326.5,0.44459889]
[1610243329561,34.98378941,1326.6,1326.4,0.44453014]
[1610243333665,34.98378941,1326.6,1326.3,0.4438354]
[1610243334466,34.98378941,1326.6,1326.2,0.44367408]
[1610243334667,4.00959,1326.3,1326.2,0.44367408]
[1610243334867,35.91088941,1326.3,1326.2,0.44367408]
[1610243338071,35.91088941,1326.3,1326.1,0.44444654]
[1610243338673,35.91088941,1326.3,1326.0,0.44446358]
[1610243339474,35.91088941,1326.3,1325.9,0.44468039]
[1610243339673,35.91088941,1326.3,1325.7,0.66775704]
[1610243340075,35.91088941,1326.3,1325.4,0.66856019]
[1610243340675,35.91088941,1326.3,1325.3,0.66818126]